[Event "*** Titled Tuesday Blitz"]
[Site "Chess.com"]
[Date "2020.12.01"]
[Round "4"]
[White "AryanTari"]
[Black "awesomevishesh"]
[Result "1-0"]
[WhiteElo "2914"]
[BlackElo "2552"]
[TimeControl "180+1"]
[EndTime "10:38:40 PST"]
[Termination "AryanTari won on time"]

1. Nf3 {[%clk 0:03:00.9]} 1... Nf6 {[%clk 0:02:58.6]} 2. b3 {[%clk 0:02:59.5]}
2... g6 {[%clk 0:02:58.1]} 3. Bb2 {[%clk 0:03:00.4]} 3... Bg7 {[%clk 0:02:58.2]}
4. g3 {[%clk 0:02:59.8]} 4... O-O {[%clk 0:02:57.4]} 5. Bg2 {[%clk 0:03:00.5]}
5... d6 {[%clk 0:02:57.4]} 6. d4 {[%clk 0:03:00.4]} 6... c5 {[%clk 0:02:56.7]}
7. O-O {[%clk 0:02:51.2]} 7... cxd4 {[%clk 0:02:54.3]} 8. Nxd4 {[%clk
0:02:51.5]} 8... d5 {[%clk 0:02:54]} 9. c4 {[%clk 0:02:49.8]} 9... dxc4 {[%clk
0:02:44]} 10. bxc4 {[%clk 0:02:50.7]} 10... Qb6 {[%clk 0:02:43.3]} 11. Qc1
{[%clk 0:02:43.3]} 11... Rd8 {[%clk 0:02:21.7]} 12. c5 {[%clk 0:02:35.7]} 12...
Qa5 {[%clk 0:01:59.1]} 13. Nd2 {[%clk 0:02:18.7]} 13... Nd5 {[%clk 0:01:33.9]}
14. N4b3 {[%clk 0:02:03]} 14... Qc7 {[%clk 0:01:28.2]} 15. Bxg7 {[%clk
0:02:02.5]} 15... Kxg7 {[%clk 0:01:28.5]} 16. Nc4 {[%clk 0:01:56.5]} 16... Nc6
{[%clk 0:01:25.3]} 17. Qb2+ {[%clk 0:01:52.1]} 17... Kg8 {[%clk 0:01:12.6]} 18.
Rfd1 {[%clk 0:01:52]} 18... Be6 {[%clk 0:01:05.2]} 19. Rac1 {[%clk 0:01:52]}
19... Nf6 {[%clk 0:00:54.3]} 20. Qc3 {[%clk 0:01:34.2]} 20... Rxd1+ {[%clk
0:00:50.1]} 21. Rxd1 {[%clk 0:01:34.9]} 21... Rd8 {[%clk 0:00:49.7]} 22. Rc1
{[%clk 0:01:35.6]} 22... Nd5 {[%clk 0:00:44.2]} 23. Qb2 {[%clk 0:01:34.3]} 23...
h5 {[%clk 0:00:26.7]} 24. h4 {[%clk 0:01:32.4]} 24... Nf6 {[%clk 0:00:22.6]} 25.
Ne3 {[%clk 0:01:29.4]} 25... Ng4 {[%clk 0:00:16.4]} 26. Qc3 {[%clk 0:01:27.2]}
26... Nxe3 {[%clk 0:00:15.5]} 27. Qxe3 {[%clk 0:01:28.1]} 27... Bd5 {[%clk
0:00:13.3]} 28. Bh3 {[%clk 0:01:24.6]} 28... e5 {[%clk 0:00:11.5]} 29. Bg2
{[%clk 0:01:08.6]} 29... Bxg2 {[%clk 0:00:10.1]} 30. Kxg2 {[%clk 0:01:09.5]}
30... Kg7 {[%clk 0:00:08.9]} 31. Qe4 {[%clk 0:01:05.9]} 31... Qd7 {[%clk
0:00:07.6]} 32. f3 {[%clk 0:00:49.3]} 32... Qd5 {[%clk 0:00:07.8]} 33. Qxd5
{[%clk 0:00:48.2]} 33... Rxd5 {[%clk 0:00:08]} 34. Kf2 {[%clk 0:00:49.1]} 34...
a5 {[%clk 0:00:07.6]} 35. a4 {[%clk 0:00:47.5]} 35... f5 {[%clk 0:00:06.9]} 36.
Rc3 {[%clk 0:00:47.3]} 36... Kf6 {[%clk 0:00:06.6]} 37. Ke1 {[%clk 0:00:46.5]}
37... Ke6 {[%clk 0:00:06.4]} 38. e4 {[%clk 0:00:46.7]} 38... fxe4 {[%clk
0:00:06.2]} 39. fxe4 {[%clk 0:00:47.6]} 39... Rd7 {[%clk 0:00:06.5]} 40. Re3
{[%clk 0:00:40.4]} 40... Nd4 {[%clk 0:00:05.7]} 41. Rc3 {[%clk 0:00:33.2]} 41...
Nxb3 {[%clk 0:00:05.1]} 42. Rxb3 {[%clk 0:00:34.1]} 42... Rd4 {[%clk 0:00:03.6]}
43. Rb6+ {[%clk 0:00:34.2]} 43... Kd7 {[%clk 0:00:01.5]} 44. Rxg6 {[%clk
0:00:31.6]} 1-0

[Event "*** Titled Tuesday Blitz"]
[Site "Chess.com"]
[Date "2020.12.01"]
[Round "4"]
[White "Yashasd1995"]
[Black "rynos0411"]
[Result "1-0"]
[WhiteElo "2596"]
[BlackElo "2366"]
[TimeControl "180+1"]
[EndTime "10:38:41 PST"]
[Termination "Yashasd1995 won by resignation"]

1. b3 {[%clk 0:03:00.9]} 1... e5 {[%clk 0:02:57.9]} 2. Bb2 {[%clk 0:03:01.8]}
2... Nc6 {[%clk 0:02:56]} 3. e3 {[%clk 0:03:02.1]} 3... a6 {[%clk 0:02:55.7]} 4.
d4 {[%clk 0:03:00]} 4... exd4 {[%clk 0:02:55.3]} 5. exd4 {[%clk 0:03:00.9]} 5...
d5 {[%clk 0:02:55.7]} 6. a3 {[%clk 0:02:59.4]} 6... Nf6 {[%clk 0:02:55.6]} 7.
Bd3 {[%clk 0:02:59.8]} 7... Bd6 {[%clk 0:02:55.1]} 8. Nf3 {[%clk 0:02:58.5]}
8... O-O {[%clk 0:02:55.1]} 9. h3 {[%clk 0:02:57.6]} 9... Re8+ {[%clk
0:02:54.3]} 10. Kf1 {[%clk 0:02:55.2]} 10... b5 {[%clk 0:02:49.9]} 11. Nbd2
{[%clk 0:02:52.3]} 11... Ne4 {[%clk 0:02:47.1]} 12. c4 {[%clk 0:02:46.1]} 12...
Nxd2+ {[%clk 0:02:38.6]} 13. Qxd2 {[%clk 0:02:47]} 13... Be6 {[%clk 0:02:20.2]}
14. cxb5 {[%clk 0:02:43.6]} 14... axb5 {[%clk 0:01:59.6]} 15. Bxb5 {[%clk
0:02:42]} 15... Bd7 {[%clk 0:01:59.9]} 16. Rc1 {[%clk 0:02:34.5]} 16... Na5
{[%clk 0:01:58.9]} 17. Bxd7 {[%clk 0:02:31.1]} 17... Qxd7 {[%clk 0:01:53]} 18.
Qd3 {[%clk 0:02:31.3]} 18... Rab8 {[%clk 0:01:50.8]} 19. b4 {[%clk 0:02:24.3]}
19... Nc4 {[%clk 0:01:50.5]} 20. Rxc4 {[%clk 0:02:24.4]} 20... dxc4 {[%clk
0:01:51.1]} 21. Qxc4 {[%clk 0:02:25.3]} 21... Qf5 {[%clk 0:01:41.9]} 22. Qc3
{[%clk 0:02:01.1]} 22... Qb1+ {[%clk 0:01:36]} 23. Qc1 {[%clk 0:02:00.9]} 23...
Qd3+ {[%clk 0:01:35.7]} 24. Kg1 {[%clk 0:02:01.1]} 24... Re2 {[%clk 0:01:33.4]}
25. Ne5 {[%clk 0:01:57]} 25... Qe4 {[%clk 0:01:26.3]} 26. Bc3 {[%clk 0:01:51.6]}
26... Rc2 {[%clk 0:01:11.6]} 27. Qa1 {[%clk 0:01:45.3]} 27... Qe2 {[%clk
0:01:02.3]} 28. Qe1 {[%clk 0:01:30.9]} 28... Qxe1+ {[%clk 0:00:23.1]} 29. Bxe1
{[%clk 0:01:31.8]} 29... Rc1 {[%clk 0:00:23]} 30. Kf1 {[%clk 0:01:32.3]} 30...
Re8 {[%clk 0:00:20.6]} 31. Nf3 {[%clk 0:01:05.2]} 31... Ra1 {[%clk 0:00:16.8]}
32. g3 {[%clk 0:01:03]} 32... Rxa3 {[%clk 0:00:16.1]} 33. Kg2 {[%clk 0:01:03.3]}
33... h6 {[%clk 0:00:13]} 34. Bd2 {[%clk 0:01:02.7]} 34... Rb3 {[%clk
0:00:12.6]} 35. Rc1 {[%clk 0:00:59]} 35... Re7 {[%clk 0:00:12.8]} 36. Rc4 {[%clk
0:00:58.2]} 36... Kh7 {[%clk 0:00:07.2]} 37. h4 {[%clk 0:00:58.2]} 37... Re8
{[%clk 0:00:06.4]} 38. d5 {[%clk 0:00:55]} 38... Rb8 {[%clk 0:00:06.1]} 39. Nd4
{[%clk 0:00:53.9]} 39... Rd3 {[%clk 0:00:06.6]} 40. Bc3 {[%clk 0:00:52.1]} 40...
Kg8 {[%clk 0:00:04.1]} 41. Nc6 {[%clk 0:00:51.9]} 41... Rb5 {[%clk 0:00:03.9]}
42. Be5 {[%clk 0:00:48.6]} 42... Rbxd5 {[%clk 0:00:03.7]} 43. Bxd6 {[%clk
0:00:47.7]} 43... Rxd6 {[%clk 0:00:04.3]} 44. Ne5 {[%clk 0:00:46.4]} 44... Kh7
{[%clk 0:00:04.5]} 45. Nxd3 {[%clk 0:00:46.2]} 45... Rxd3 {[%clk 0:00:05.4]} 46.
Rxc7 {[%clk 0:00:46.8]} 46... Rb3 {[%clk 0:00:05.9]} 47. Rb7 {[%clk 0:00:45.8]}
47... Kg6 {[%clk 0:00:06.3]} 48. b5 {[%clk 0:00:45]} 48... f6 {[%clk 0:00:06.8]}
49. h5+ {[%clk 0:00:44.3]} 49... Kxh5 {[%clk 0:00:06.4]} 50. Rxg7 {[%clk
0:00:44.2]} 50... Rxb5 {[%clk 0:00:06.6]} 51. Kh3 {[%clk 0:00:44.9]} 51... Rg5
{[%clk 0:00:05.1]} 52. g4+ {[%clk 0:00:42.6]} 1-0

[Event "*** Titled Tuesday Blitz"]
[Site "Chess.com"]
[Date "2020.12.01"]
[Round "4"]
[White "AsaHoffmann"]
[Black "salomez"]
[Result "1-0"]
[WhiteElo "2386"]
[BlackElo "2143"]
[TimeControl "180+1"]
[EndTime "10:38:41 PST"]
[Termination "AsaHoffmann won on time"]

1. d4 {[%clk 0:02:56.8]} 1... Nf6 {[%clk 0:02:59.2]} 2. Bg5 {[%clk 0:02:54]}
2... Ne4 {[%clk 0:02:55.2]} 3. Bf4 {[%clk 0:02:53.7]} 3... g6 {[%clk 0:02:54.6]}
4. f3 {[%clk 0:02:53.4]} 4... Nf6 {[%clk 0:02:54]} 5. e4 {[%clk 0:02:53.3]} 5...
d5 {[%clk 0:02:49.5]} 6. e5 {[%clk 0:02:52.9]} 6... Nfd7 {[%clk 0:02:48.2]} 7.
Qd2 {[%clk 0:02:51.6]} 7... Bg7 {[%clk 0:02:48.1]} 8. Nc3 {[%clk 0:02:50.4]}
8... c6 {[%clk 0:02:47.8]} 9. O-O-O {[%clk 0:02:48.6]} 9... O-O {[%clk
0:02:46.4]} 10. Bh6 {[%clk 0:02:48.2]} 10... b5 {[%clk 0:02:44.7]} 11. h4 {[%clk
0:02:47.5]} 11... f6 {[%clk 0:02:32.4]} 12. Bxg7 {[%clk 0:02:43.5]} 12... Kxg7
{[%clk 0:02:31.7]} 13. h5 {[%clk 0:02:43.4]} 13... g5 {[%clk 0:02:27.2]} 14. f4
{[%clk 0:02:37.1]} 14... h6 {[%clk 0:02:25]} 15. Qd3 {[%clk 0:02:33.7]} 15...
Qe8 {[%clk 0:02:20.1]} 16. g3 {[%clk 0:02:30.3]} 16... Nb6 {[%clk 0:02:19.2]}
17. b3 {[%clk 0:02:29.3]} 17... fxe5 {[%clk 0:02:14.7]} 18. fxe5 {[%clk
0:02:26.9]} 18... Bf5 {[%clk 0:02:14.6]} 19. Qd2 {[%clk 0:02:25]} 19... a5
{[%clk 0:02:08.3]} 20. Bd3 {[%clk 0:02:23.9]} 20... e6 {[%clk 0:01:59.8]} 21.
Nge2 {[%clk 0:02:17.5]} 21... a4 {[%clk 0:01:55.9]} 22. Nb1 {[%clk 0:02:09.5]}
22... Na6 {[%clk 0:01:47.5]} 23. Rhf1 {[%clk 0:02:08.3]} 23... Qxh5 {[%clk
0:01:32.9]} 24. Bxf5 {[%clk 0:02:05.5]} 24... exf5 {[%clk 0:01:27.4]} 25. Rde1
{[%clk 0:02:00.5]} 25... axb3 {[%clk 0:01:08.3]} 26. axb3 {[%clk 0:01:58.9]}
26... b4 {[%clk 0:01:06.9]} 27. Qd3 {[%clk 0:01:55.2]} 27... Qg6 {[%clk
0:00:59.4]} 28. Nd2 {[%clk 0:01:53]} 28... c5 {[%clk 0:00:58.1]} 29. Qb5 {[%clk
0:01:49.9]} 29... Rfb8 {[%clk 0:00:32.3]} 30. dxc5 {[%clk 0:01:44.7]} 30... Nc7
{[%clk 0:00:28]} 31. Qd3 {[%clk 0:01:27.1]} 31... Nd7 {[%clk 0:00:20.1]} 32. Nd4
{[%clk 0:01:15]} 32... Nxc5 {[%clk 0:00:12.7]} 33. Nxf5+ {[%clk 0:01:13.7]}
33... Kh8 {[%clk 0:00:10.8]} 34. Qd4 {[%clk 0:01:13.4]} 34... N5e6 {[%clk
0:00:06.5]} 35. Qd3 {[%clk 0:01:08.5]} 35... Ra2 {[%clk 0:00:05.1]} 36. g4
{[%clk 0:01:03.7]} 36... Rba8 {[%clk 0:00:04.8]} 37. Rh1 {[%clk 0:00:59.6]}
37... Ra1+ {[%clk 0:00:04.6]} 38. Nb1 {[%clk 0:00:59.1]} 38... Nf4 {[%clk
0:00:04.4]} 39. Qd4 {[%clk 0:00:52.4]} 39... Nce6 {[%clk 0:00:02.4]} 40. Qxb4
{[%clk 0:00:51.5]} 40... h5 {[%clk 0:00:02.4]} 41. Qe7 {[%clk 0:00:41.4]} 41...
Rc8 {[%clk 0:00:02]} 42. Rxh5+ {[%clk 0:00:32.5]} 42... Nxh5 {[%clk 0:00:01.4]}
43. Rh1 {[%clk 0:00:31.9]} 1-0

[Event "*** Titled Tuesday Blitz"]
[Site "Chess.com"]
[Date "2020.12.01"]
[Round "4"]
[White "GM_LOADING"]
[Black "Chernov_Mikhail"]
[Result "1-0"]
[WhiteElo "2474"]
[BlackElo "2301"]
[TimeControl "180+1"]
[EndTime "10:38:42 PST"]
[Termination "GM_LOADING won by resignation"]

1. Nf3 {[%clk 0:02:59.1]} 1... c5 {[%clk 0:02:59.9]} 2. g3 {[%clk 0:02:55.3]}
2... Nc6 {[%clk 0:03:00.2]} 3. Bg2 {[%clk 0:02:53.4]} 3... e5 {[%clk 0:03:00.6]}
4. d3 {[%clk 0:02:50]} 4... g6 {[%clk 0:03:01.5]} 5. c4 {[%clk 0:02:45.7]} 5...
Bg7 {[%clk 0:03:02.4]} 6. O-O {[%clk 0:02:44]} 6... Nge7 {[%clk 0:03:02.2]} 7.
Nc3 {[%clk 0:02:40.9]} 7... O-O {[%clk 0:03:02.6]} 8. Rb1 {[%clk 0:02:39.9]}
8... d6 {[%clk 0:02:55.7]} 9. a3 {[%clk 0:02:39.9]} 9... a5 {[%clk 0:02:55.6]}
10. Ne1 {[%clk 0:02:39.6]} 10... Be6 {[%clk 0:02:54.2]} 11. Nc2 {[%clk
0:02:39.9]} 11... d5 {[%clk 0:02:54]} 12. cxd5 {[%clk 0:02:37.2]} 12... Nxd5
{[%clk 0:02:54.9]} 13. Ne3 {[%clk 0:02:33.4]} 13... Nde7 {[%clk 0:02:54.5]} 14.
Nc4 {[%clk 0:02:29]} 14... Rb8 {[%clk 0:02:47.8]} 15. Nb5 {[%clk 0:02:07.3]}
15... Nd4 {[%clk 0:02:44.9]} 16. a4 {[%clk 0:02:03.8]} 16... Nxb5 {[%clk
0:02:31.3]} 17. axb5 {[%clk 0:02:03.8]} 17... Bd5 {[%clk 0:02:26.3]} 18. Bd2
{[%clk 0:02:00.6]} 18... Bxg2 {[%clk 0:02:25.5]} 19. Kxg2 {[%clk 0:02:01.5]}
19... b6 {[%clk 0:02:24.5]} 20. Bc3 {[%clk 0:02:01.2]} 20... Nf5 {[%clk
0:02:10.4]} 21. e4 {[%clk 0:01:32.8]} 21... Nd4 {[%clk 0:02:09.7]} 22. Qa4
{[%clk 0:01:31.9]} 22... Qd7 {[%clk 0:02:00.6]} 23. Rbd1 {[%clk 0:01:27.9]}
23... f6 {[%clk 0:01:45.6]} 24. Bxd4 {[%clk 0:01:26.1]} 24... Qxd4 {[%clk
0:01:46.5]} 25. Qb3 {[%clk 0:01:18.6]} 25... Kh8 {[%clk 0:01:46.3]} 26. Ne3
{[%clk 0:01:18.8]} 26... f5 {[%clk 0:01:38.8]} 27. exf5 {[%clk 0:01:18.8]} 27...
gxf5 {[%clk 0:01:38.6]} 28. Qc4 {[%clk 0:01:12]} 28... Qxb2 {[%clk 0:01:33.9]}
29. Rb1 {[%clk 0:01:05.3]} 29... Qd4 {[%clk 0:01:33.2]} 30. Qxd4 {[%clk
0:01:05.7]} 30... exd4 {[%clk 0:01:15.1]} 31. Nc4 {[%clk 0:01:04.8]} 31... f4
{[%clk 0:01:15.6]} 32. Rfe1 {[%clk 0:00:59]} 32... f3+ {[%clk 0:01:15.6]} 33.
Kh3 {[%clk 0:00:57.8]} 33... Rf6 {[%clk 0:01:00.9]} 34. Kg4 {[%clk 0:00:54.1]}
34... h5+ {[%clk 0:00:48.8]} 35. Kh3 {[%clk 0:00:52.9]} 35... Kh7 {[%clk
0:00:45.4]} 36. Re5 {[%clk 0:00:51.5]} 36... Kg6 {[%clk 0:00:44.4]} 37. Rbe1
{[%clk 0:00:50.3]} 37... Kf7 {[%clk 0:00:25]} 38. Re7+ {[%clk 0:00:49.9]} 38...
Kf8 {[%clk 0:00:20.4]} 39. Ra7 {[%clk 0:00:48.3]} 39... Bh6 {[%clk 0:00:17.3]}
40. Ne5 {[%clk 0:00:45.4]} 40... Rd8 {[%clk 0:00:14.4]} 41. Nd7+ {[%clk
0:00:44.2]} 41... Kf7 {[%clk 0:00:14.4]} 42. Nxb6+ {[%clk 0:00:41.7]} 42... Kg6
{[%clk 0:00:14]} 43. Nc4 {[%clk 0:00:41.8]} 43... Bg7 {[%clk 0:00:07.2]} 44.
Rxa5 {[%clk 0:00:39.4]} 44... Rb8 {[%clk 0:00:07.6]} 45. Re7 {[%clk 0:00:36.3]}
45... Rf7 {[%clk 0:00:07]} 46. Ra6+ {[%clk 0:00:35.4]} 46... Bf6 {[%clk
0:00:06.6]} 47. Ne5+ {[%clk 0:00:34.3]} 1-0

[Event "*** Titled Tuesday Blitz"]
[Site "Chess.com"]
[Date "2020.12.01"]
[Round "4"]
[White "RaneshRatnesan"]
[Black "Forantes"]
[Result "0-1"]
[WhiteElo "2148"]
[BlackElo "2388"]
[TimeControl "180+1"]
[EndTime "10:38:43 PST"]
[Termination "Forantes won by resignation"]

1. d4 {[%clk 0:03:00.9]} 1... Nf6 {[%clk 0:02:59.2]} 2. c4 {[%clk 0:02:55.2]}
2... g6 {[%clk 0:02:59.4]} 3. g3 {[%clk 0:02:46.5]} 3... Bg7 {[%clk 0:02:59.2]}
4. Bg2 {[%clk 0:02:46.9]} 4... d5 {[%clk 0:02:59.7]} 5. cxd5 {[%clk 0:02:46.4]}
5... Nxd5 {[%clk 0:03:00.6]} 6. Nc3 {[%clk 0:02:46.5]} 6... Nb6 {[%clk
0:03:00.5]} 7. e3 {[%clk 0:02:35.7]} 7... O-O {[%clk 0:02:59.8]} 8. Nge2 {[%clk
0:02:34.3]} 8... Nc6 {[%clk 0:02:59.2]} 9. O-O {[%clk 0:02:31]} 9... a5 {[%clk
0:02:59.1]} 10. b3 {[%clk 0:02:17.5]} 10... Re8 {[%clk 0:02:58.9]} 11. Bb2
{[%clk 0:02:13.1]} 11... e5 {[%clk 0:02:59]} 12. d5 {[%clk 0:02:09.1]} 12... Ne7
{[%clk 0:02:58.4]} 13. e4 {[%clk 0:02:09.1]} 13... Bg4 {[%clk 0:02:50.9]} 14. h3
{[%clk 0:01:59.8]} 14... Bd7 {[%clk 0:02:49]} 15. Qd2 {[%clk 0:01:55.3]} 15...
Nec8 {[%clk 0:02:49]} 16. Rac1 {[%clk 0:01:51.3]} 16... Nd6 {[%clk 0:02:48.6]}
17. Rfd1 {[%clk 0:01:51.3]} 17... a4 {[%clk 0:02:47.3]} 18. Kh2 {[%clk
0:01:42.7]} 18... axb3 {[%clk 0:02:41.9]} 19. axb3 {[%clk 0:01:43.6]} 19... f5
{[%clk 0:02:41.4]} 20. Ng1 {[%clk 0:01:32.8]} 20... f4 {[%clk 0:02:38.2]} 21.
Nf3 {[%clk 0:01:30]} 21... Bh6 {[%clk 0:02:18.4]} 22. Qd3 {[%clk 0:01:25.3]}
22... fxg3+ {[%clk 0:02:17.6]} 23. fxg3 {[%clk 0:01:26.2]} 23... Bxc1 {[%clk
0:02:18.4]} 24. Bxc1 {[%clk 0:01:26.6]} 24... Qf6 {[%clk 0:02:12.4]} 25. Bg5
{[%clk 0:01:26.6]} 25... Qg7 {[%clk 0:02:12.5]} 26. Qd2 {[%clk 0:01:22.3]} 26...
Nf7 {[%clk 0:02:08.7]} 27. Be3 {[%clk 0:01:19.1]} 27... Nc8 {[%clk 0:02:07.3]}
28. Bf1 {[%clk 0:01:13.5]} 28... Ncd6 {[%clk 0:02:07.5]} 29. Bg2 {[%clk
0:01:13.2]} 29... Ra3 {[%clk 0:01:55.5]} 30. Qb2 {[%clk 0:01:12.6]} 30... Rea8
{[%clk 0:01:49.8]} 31. Bc5 {[%clk 0:01:11.9]} 31... R3a5 {[%clk 0:01:41.7]} 32.
b4 {[%clk 0:01:05.1]} 32... Ra3 {[%clk 0:01:40.7]} 33. b5 {[%clk 0:00:55.2]}
33... R3a5 {[%clk 0:01:24.1]} 34. Qb4 {[%clk 0:00:55.6]} 34... b6 {[%clk
0:01:22.7]} 35. Bxd6 {[%clk 0:00:53.7]} 35... Nxd6 {[%clk 0:01:22.4]} 36. Bf1
{[%clk 0:00:50.1]} 36... Qf6 {[%clk 0:01:19.9]} 37. Be2 {[%clk 0:00:47.2]} 37...
Bxb5 {[%clk 0:01:13.9]} 38. Nxb5 {[%clk 0:00:38.5]} 38... Nxb5 {[%clk
0:01:13.7]} 39. d6 {[%clk 0:00:32.5]} 39... Nxd6 {[%clk 0:01:11.7]} 40. Rf1
{[%clk 0:00:30.3]} 40... Ra2 {[%clk 0:01:00.2]} 41. Rf2 {[%clk 0:00:29.9]} 41...
R8a3 {[%clk 0:00:52.2]} 42. Kg2 {[%clk 0:00:26]} 42... Rxe2 {[%clk 0:00:51.1]}
43. Qxa3 {[%clk 0:00:24.4]} 43... Rxf2+ {[%clk 0:00:51.3]} 44. Kxf2 {[%clk
0:00:24.6]} 44... Nxe4+ {[%clk 0:00:51.6]} 45. Kg2 {[%clk 0:00:25.2]} 45... Nd6
{[%clk 0:00:50.6]} 46. Qe3 {[%clk 0:00:21]} 46... e4 {[%clk 0:00:50.4]} 47. Nd4
{[%clk 0:00:21.5]} 47... Qf7 {[%clk 0:00:46.9]} 48. h4 {[%clk 0:00:19.5]} 48...
c5 {[%clk 0:00:44.6]} 49. Ne2 {[%clk 0:00:17.3]} 49... Qf3+ {[%clk 0:00:44.2]}
50. Qxf3 {[%clk 0:00:17.3]} 50... exf3+ {[%clk 0:00:45.1]} 51. Kxf3 {[%clk
0:00:18.2]} 51... Kf7 {[%clk 0:00:45.1]} 52. Ke3 {[%clk 0:00:18.7]} 52... Ke6
{[%clk 0:00:45.3]} 53. Kd3 {[%clk 0:00:19.2]} 53... Kf5 {[%clk 0:00:45]} 54. Ke3
{[%clk 0:00:19.5]} 54... Kg4 {[%clk 0:00:45]} 55. Kd3 {[%clk 0:00:19.2]} 55...
Nf5 {[%clk 0:00:45]} 56. Ke4 {[%clk 0:00:18.8]} 56... Nxg3+ {[%clk 0:00:44.7]}
57. Nxg3 {[%clk 0:00:19.7]} 0-1

[Event "*** Titled Tuesday Blitz"]
[Site "Chess.com"]
[Date "2020.12.01"]
[Round "4"]
[White "adriangschnitzer"]
[Black "Gloomy_Wanderer"]
[Result "0-1"]
[WhiteElo "2486"]
[BlackElo "2705"]
[TimeControl "180+1"]
[EndTime "10:38:46 PST"]
[Termination "Gloomy_Wanderer won by resignation"]

1. e4 {[%clk 0:03:00.9]} 1... e5 {[%clk 0:02:59.5]} 2. Nf3 {[%clk 0:03:00.2]}
2... Nc6 {[%clk 0:02:59.6]} 3. Bc4 {[%clk 0:03:00.3]} 3... Nf6 {[%clk
0:02:59.5]} 4. d3 {[%clk 0:03:00.1]} 4... Be7 {[%clk 0:02:59.3]} 5. O-O {[%clk
0:02:59.6]} 5... O-O {[%clk 0:02:59.4]} 6. Re1 {[%clk 0:02:59.1]} 6... d6 {[%clk
0:02:57.9]} 7. a4 {[%clk 0:02:58.5]} 7... Na5 {[%clk 0:02:56.8]} 8. Ba2 {[%clk
0:02:57.8]} 8... c5 {[%clk 0:02:57.1]} 9. c3 {[%clk 0:02:57.2]} 9... Nc6 {[%clk
0:02:55.2]} 10. Nbd2 {[%clk 0:02:56.9]} 10... h6 {[%clk 0:02:53.9]} 11. Nc4
{[%clk 0:02:56.2]} 11... Re8 {[%clk 0:02:53.4]} 12. Ne3 {[%clk 0:02:55.9]} 12...
Bf8 {[%clk 0:02:51.6]} 13. h3 {[%clk 0:02:51.8]} 13... Be6 {[%clk 0:02:43.1]}
14. Bxe6 {[%clk 0:02:48.7]} 14... Rxe6 {[%clk 0:02:43.1]} 15. Nf5 {[%clk
0:02:43.6]} 15... d5 {[%clk 0:02:41.7]} 16. Qe2 {[%clk 0:02:37.5]} 16... Qd7
{[%clk 0:02:38.2]} 17. Nh2 {[%clk 0:02:32.5]} 17... Rd8 {[%clk 0:02:35.6]} 18.
Ng4 {[%clk 0:02:30.2]} 18... Nxg4 {[%clk 0:02:20]} 19. hxg4 {[%clk 0:02:31.1]}
19... d4 {[%clk 0:02:10.3]} 20. c4 {[%clk 0:02:25.4]} 20... Kh7 {[%clk
0:02:02.3]} 21. g5 {[%clk 0:02:15.7]} 21... g6 {[%clk 0:01:26.5]} 22. Nxh6
{[%clk 0:02:06.4]} 22... Bxh6 {[%clk 0:01:26.4]} 23. gxh6 {[%clk 0:02:07.3]}
23... f5 {[%clk 0:01:27]} 24. Bg5 {[%clk 0:01:44.3]} 24... Rf8 {[%clk
0:01:25.4]} 25. g3 {[%clk 0:01:28.5]} 25... Qf7 {[%clk 0:01:21.7]} 26. exf5
{[%clk 0:01:15.7]} 26... gxf5 {[%clk 0:01:21.1]} 27. f4 {[%clk 0:01:01.4]} 27...
Qg6 {[%clk 0:01:13.4]} 28. Kg2 {[%clk 0:00:51.9]} 28... e4 {[%clk 0:01:01.2]}
29. g4 {[%clk 0:00:34]} 29... e3 {[%clk 0:00:52.2]} 30. gxf5 {[%clk 0:00:31.1]}
30... Rxf5 {[%clk 0:00:51.1]} 31. Qg4 {[%clk 0:00:25.8]} 31... Ne5 {[%clk
0:00:48.1]} 32. Qg3 {[%clk 0:00:21.7]} 32... Nxd3 {[%clk 0:00:46.1]} 33. Rh1
{[%clk 0:00:18.7]} 33... Nxf4+ {[%clk 0:00:38.6]} 34. Bxf4 {[%clk 0:00:19.6]}
34... Rxf4 {[%clk 0:00:38.8]} 35. Qxg6+ {[%clk 0:00:10.8]} 35... Rxg6+ {[%clk
0:00:38.7]} 36. Kh3 {[%clk 0:00:11.2]} 36... Rf5 {[%clk 0:00:32.5]} 37. Kh4
{[%clk 0:00:09.9]} 37... e2 {[%clk 0:00:32.1]} 38. Rag1 {[%clk 0:00:08]} 38...
Rxh6+ {[%clk 0:00:26.6]} 39. Kg4 {[%clk 0:00:07.1]} 39... Re5 {[%clk 0:00:26.7]}
40. Rxh6+ {[%clk 0:00:05.9]} 40... Kxh6 {[%clk 0:00:27.6]} 41. Rh1+ {[%clk
0:00:06.3]} 41... Kg6 {[%clk 0:00:27.4]} 42. Re1 {[%clk 0:00:07.2]} 42... d3
{[%clk 0:00:27.5]} 43. Kf4 {[%clk 0:00:08.1]} 43... d2 {[%clk 0:00:26.1]} 44.
Rg1+ {[%clk 0:00:08.5]} 44... Kf6 {[%clk 0:00:26.3]} 0-1